bitfinex/quotes_ETHUSD_20251117
["timestamp","ask_amount","ask_price","bid_price","bid_amount"]
[1763374510765,0.4969,3211.8,3211.4,0.4955]
[1763374511166,0.4969,3211.8,3211.4,0.002]
[1763374511365,0.413,3211.5,3211.4,0.002]
[1763374511570,0.70501173,3211.5,3211.4,0.002]
[1763374511787,1.20091173,3211.5,3211.4,0.002]
[1763374511985,1.38827497,3211.5,3211.4,0.002]
[1763374512190,1.3882543,3211.5,3211.4,0.002]
[1763374512386,1.09626324,3211.5,3211.4,0.002]
[1763374512590,1.20081164,3211.5,3211.4,0.002]
[1763374513392,0.9089,3211.5,3211.4,0.002]
[1763374514307,1.314404,3211.5,3211.4,0.002]
[1763374514513,1.60618037,3211.5,3211.4,0.002]
[1763374514810,2.27854504,3211.5,3211.4,0.002]
[1763374514964,0.405504,3211.4,3211.1,0.002]
[1763374515170,5.27730756,3211.2,3211.1,0.002]
[1763374515370,5.56908393,3211.2,3211.1,0.002]
[1763374515710,6.06578393,3211.2,3211.1,0.002]
[1763374516109,6.06498393,3211.2,3211.1,0.002]
[1763374516290,6.68396884,3211.2,3211.1,0.002]
[1763374517305,1.9473448,3211.1,3210.8,0.001]
[1763374517472,3.93256276,3210.9,3210.8,0.001]
[1763374517667,4.22433913,3210.9,3210.8,0.001]
[1763374517993,4.70523913,3210.9,3210.8,0.001]
[1763374518305,6.46342832,3210.9,3210.8,0.001]
[1763374520014,6.86893232,3210.9,3210.8,0.001]
[1763374520383,1.76638919,3210.9,3210.8,0.001]
[1763374520588,1.6228408,3210.9,3210.8,0.001]
[1763374521696,2.0283448,3210.9,3210.8,0.001]
[1763374522403,1.5474448,3210.9,3210.8,0.001]
[1763374522603,2.0246448,3210.9,3210.8,0.001]
[1763374526077,2.31554567,3210.9,3210.8,0.001]
[1763374526270,3.24425086,3210.9,3210.8,0.001]
[1763374530608,6.35864246,3210.9,3210.8,0.001]
[1763374530803,10.76717854,3210.9,3210.8,0.001]
[1763374531120,10.89207491,3210.9,3210.8,0.001]
[1763374532616,8.2666907,3210.9,3210.8,0.001]
[1763374532986,10.89207491,3210.9,3210.8,0.001]
[1763374533325,7.77768331,3210.9,3210.8,0.001]
[1763374533676,10.89207491,3210.9,3210.8,0.001]
[1763374534376,14.63000779,3210.9,3210.8,0.001]
[1763374535888,15.11904262,3210.9,3210.8,0.001]
[1763374537379,11.38110974,3210.9,3210.8,0.001]
[1763374539110,11.38030974,3210.9,3210.8,0.001]
[1763374539310,8.26591814,3210.9,3210.8,0.001]
[1763374539607,6.12457697,3210.9,3210.8,0.001]
[1763374539810,7.25831777,3210.9,3210.8,0.001]
[1763374540008,7.24648294,3210.9,3210.8,0.001]
[1763374540377,6.76928294,3210.9,3210.8,0.001]
[1763374540602,6.09127974,3210.9,3210.8,0.4789]
[1763374540797,6.09127974,3210.9,3210.8,0.001]
[1763374540996,6.52857974,3210.9,3210.8,0.001]
[1763374541293,6.93408374,3210.9,3210.8,0.001]
[1763374542129,7.41088374,3210.9,3210.8,0.001]
[1763374542335,7.60612331,3210.9,3210.8,0.001]
[1763374543124,7.16882331,3210.9,3210.8,0.4789]
[1763374543327,4.43433775,3210.9,3210.8,0.4789]
[1763374543531,5.56807855,3210.9,3210.8,0.4789]
[1763374545916,6.00537855,3210.9,3210.8,0.001]
[1763374548541,6.48217855,3210.9,3210.8,0.001]
[1763374548846,7.13049641,3210.9,3210.8,0.001]
[1763374549052,7.80315135,3210.9,3210.8,0.001]
[1763374551221,6.65369641,3210.9,3210.8,0.001]
[1763374551455,6.21639641,3210.9,3210.8,0.4789]
[1763374551844,1.42464167,3210.9,3210.8,0.9588]
[1763374553144,0.001,3211.0,3210.8,2.2488]
[1763374553318,0.001,3211.0,3210.9,0.9687]
[1763374557673,0.001,3211.0,3210.9,2.2587]
[1763374562187,0.0002,3211.0,3210.9,2.2587]
[1763374570102,0.0002,3211.0,3210.9,1.7788]
[1763374570801,0.0002,3211.0,3210.9,2.2587]
[1763374571654,0.0002,3211.0,3210.9,1.7788]
[1763374572955,0.0002,3211.0,3210.9,2.2587]
[1763374573382,0.0002,3211.0,3210.9,1.7788]
[1763374575269,0.0002,3211.0,3210.9,1.7808]
[1763374575990,0.0002,3211.0,3210.9,2.2607]
[1763374578567,0.0002,3211.0,3210.9,1.7808]
[1763374579862,0.0002,3211.0,3210.9,2.2663]
[1763374580373,0.0002,3211.0,3210.9,1.7808]
[1763374581480,0.0002,3211.0,3210.9,2.2663]
[1763374583477,0.0002,3211.0,3210.9,2.29744391]
[1763374583716,0.0002,3211.0,3210.9,2.2663]
[1763374585274,0.0004,3211.4,3211.3,0.4924]
[1763374585681,0.0004,3211.4,3211.3,0.9866]
[1763374586910,0.0004,3211.4,3211.3,2.2766]
[1763374592502,0.0004,3211.4,3211.3,2.40140012]
[1763374593830,0.0004,3211.4,3211.3,1.90720012]
[1763374594128,0.0004,3211.4,3211.3,1.29]
[1763374594129,0.9273,3211.4,3211.3,1.29]
[1763374597515,0.4959,3211.4,3211.3,1.29]
[1763374598239,0.0004,3211.4,3211.3,1.7824]
[1763374598609,0.9268,3211.4,3211.3,1.29]
[1763374599346,0.437,3211.4,3211.3,1.29]
[1763374600014,0.9268,3211.4,3211.3,1.29]
[1763374600805,0.437,3211.4,3211.3,1.29]
[1763374603037,0.0004,3211.4,3211.3,1.29]
[1763374603240,0.0004,3211.4,3211.3,1.7824]
[1763374605652,0.0004,3211.4,3211.3,2.2766]
[1763374608153,0.0006,3211.7,3211.3,2.2766]
[1763374608360,0.0006,3211.7,3211.6,0.4924]
[1763374608667,0.0006,3211.7,3211.6,1.7824]
[1763374608854,0.0006,3211.7,3211.6,2.2766]
[1763374609162,0.4372,3211.7,3211.6,1.29]
[1763374609664,0.927,3211.7,3211.6,1.29]
[1763374610259,0.4372,3211.7,3211.6,1.29]
[1763374610677,0.927,3211.7,3211.6,1.29]
[1763374619700,0.4372,3211.7,3211.6,1.29]
[1763374620196,0.927,3211.7,3211.6,1.29]
[1763374621198,1.21917679,3211.7,3211.6,1.29]
[1763374623898,1.73291499,3211.7,3211.6,1.29]
[1763374624302,2.13841899,3211.7,3211.6,1.29]
[1763374624505,3.94550708,3211.7,3211.6,1.29]
[1763374624798,2.04718959,3211.6,3211.3,0.002]
[1763374624972,4.87104604,3211.4,3211.3,0.002]
[1763374625178,5.83657012,3211.4,3211.3,0.002]
[1763374625399,6.33577012,3211.4,3211.3,0.002]
[1763374626462,5.66242283,3211.4,3211.3,0.002]
[1763374626668,6.32000999,3211.4,3211.3,0.002]
[1763374626987,7.39834753,3211.4,3211.3,0.002]
[1763374631303,7.39754753,3211.4,3211.3,0.002]
[1763374632630,6.72471399,3211.4,3211.3,0.002]
[1763374634196,2.99230875,3211.4,3211.3,0.002]
[1763374634401,2.33472159,3211.4,3211.3,0.002]
[1763374635743,6.73809832,3211.4,3211.3,0.002]
[1763374646459,6.73909832,3211.4,3211.3,0.002]
[1763374647271,9.85300502,3211.4,3211.3,0.002]
[1763374648180,6.73909832,3211.4,3211.3,0.002]
[1763374648344,8.17037992,3211.4,3211.3,0.002]
[1763374649150,4.43797468,3211.4,3211.3,0.002]
[1763374649372,3.00669308,3211.4,3211.3,0.002]
[1763374652976,6.74161192,3211.4,3211.3,0.002]
[1763374653572,6.24241192,3211.4,3211.3,0.002]
[1763374654079,6.71041192,3211.4,3211.3,0.002]
[1763374654284,6.70961192,3211.4,3211.3,0.002]
[1763374654485,8.3533723,3211.4,3211.3,0.002]
[1763374655586,1.5392448,3211.3,3210.9,0.002]
[1763374655771,1.9938448,3211.0,3210.9,0.002]
[1763374655973,2.95699308,3211.0,3210.9,0.002]
[1763374656291,4.14098427,3211.0,3210.9,0.002]
[1763374657787,1.36865228,3211.0,3210.9,0.9938]
[1763374658176,1.36865228,3211.0,3210.9,0.4962]
[1763374658559,6.69361192,3211.0,3210.9,0.002]
[1763374658758,7.16151192,3211.0,3210.9,0.002]
[1763374659061,7.96189862,3211.0,3210.9,0.002]
[1763374661370,3.30277978,3211.0,3210.9,0.4962]
[1763374661561,2.50239308,3211.0,3210.9,0.4962]
[1763374662207,2.98489308,3211.0,3210.9,0.002]
[1763374662920,3.42689308,3211.0,3210.9,0.002]
[1763374663605,6.71981192,3211.0,3210.9,0.002]
[1763374663911,3.25860978,3211.0,3210.9,0.4962]
[1763374668712,3.25860978,3211.0,3210.9,0.9938]
[1763374669533,3.25860978,3211.0,3210.9,0.4962]
[1763374670435,2.50239308,3211.0,3210.9,0.4962]
[1763374670634,2.50239308,3211.0,3210.9,0.9938]
[1763374671507,2.50239308,3211.0,3210.9,0.4962]
[1763374675516,2.99419308,3211.0,3210.9,0.002]
[1763374675717,3.42689308,3211.0,3210.9,0.002]
[1763374675934,4.22730978,3211.0,3210.9,0.002]
[1763374677459,4.22650978,3211.0,3210.9,0.002]
[1763374679952,3.09276898,3211.0,3210.9,0.002]
[1763374682575,2.66006898,3211.0,3210.9,0.002]
[1763374682734,2.16826898,3211.0,3210.9,0.4722]
[1763374682949,1.36785228,3211.0,3210.9,0.4722]
[1763374683975,1.85965228,3211.0,3210.9,0.002]
[1763374684290,2.29235228,3211.0,3210.9,0.002]
[1763374685367,2.29235228,3211.0,3210.8,0.001]
[1763374685368,1.5392448,3210.9,3210.8,0.001]
[1763374685535,5.27416364,3210.8,3210.7,0.002]
[1763374685740,9.1135989,3210.8,3210.7,0.002]
[1763374685979,9.60257618,3210.8,3210.7,0.002]
[1763374686274,9.7274823,3210.8,3210.7,0.002]
[1763374686476,10.82836622,3210.8,3210.7,0.002]
[1763374686664,9.90776622,3210.8,3210.7,0.002]
[1763374686868,9.75157497,3210.8,3210.7,0.002]
[1763374687164,9.33344191,3210.7,3210.6,0.002]
[1763374687343,12.7637251,3210.7,3210.6,0.002]
[1763374687536,14.4315077,3210.7,3210.6,0.002]
[1763374687778,15.3717077,3210.7,3210.6,0.002]
[1763374688274,13.7039251,3210.7,3210.6,0.002]
[1763374688474,9.96900626,3210.7,3210.6,0.002]
[1763374689379,13.7039251,3210.7,3210.6,0.002]
[1763374690054,5.27416364,3210.6,3210.5,0.002]
[1763374690375,11.5445761,3210.6,3210.5,0.002]
[1763374690779,12.03361571,3210.6,3210.5,0.002]
[1763374691276,15.14829832,3210.6,3210.5,0.002]
[1763374691481,14.02776718,3210.6,3210.5,0.002]
[1763374692983,14.15268851,3210.6,3210.5,0.002]
[1763374694655,5.89399439,3210.6,3210.5,0.002]
[1763374694970,2.58592869,3210.6,3210.5,0.4705]
[1763374695172,2.99143269,3210.6,3210.5,0.4705]
[1763374695488,2.50239308,3210.6,3210.5,0.002]
[1763374696252,2.50239308,3210.6,3210.5,0.4705]
[1763374696478,0.29217679,3210.6,3210.5,0.9551]
[1763374696642,3.73491884,3210.6,3210.5,0.4705]
[1763374696847,5.56634043,3210.6,3210.5,0.4705]
[1763374697048,5.16083643,3210.6,3210.5,0.4705]
[1763374697342,5.56634043,3210.6,3210.5,0.4705]
[1763374697766,5.56634043,3210.6,3210.5,0.9551]
[1763374700264,5.56554043,3210.6,3210.5,0.9551]
[1763374703199,5.56554043,3210.6,3210.5,0.4705]
[1763374703498,5.56554043,3210.6,3210.5,0.002]
[1763374703499,6.57959447,3210.6,3210.5,0.002]
[1763374703884,7.25083291,3210.6,3210.5,0.002]
[1763374704198,7.73173291,3210.6,3210.5,0.002]
[1763374704382,14.58133436,3210.6,3210.5,0.002]
[1763374704999,15.52602703,3210.6,3210.5,0.002]
[1763374705491,16.49032814,3210.6,3210.5,0.002]
[1763374707512,11.81151663,3210.6,3210.5,0.002]
[1763374708331,8.69683402,3210.6,3210.5,0.002]
[1763374708512,11.68660154,3210.6,3210.5,0.002]
[1763374708723,12.17564975,3210.6,3210.5,0.002]
[1763374708913,11.68660154,3210.6,3210.5,0.002]
[1763374711426,15.42152038,3210.6,3210.5,0.002]
[1763374712119,12.17565365,3210.6,3210.5,0.002]
[1763374712333,15.42152038,3210.6,3210.5,0.002]
[1763374712620,15.91057229,3210.6,3210.5,0.002]
[1763374712842,11.68977606,3210.6,3210.5,0.002]
[1763374713248,10.85039004,3210.6,3210.5,0.002]
[1763374714435,10.85139004,3210.6,3210.5,0.002]
[1763374714644,10.97630201,3210.6,3210.5,0.002]
[1763374715335,1.5392448,3210.5,3210.4,0.002]
[1763374715537,5.95680814,3210.5,3210.4,0.002]
[1763374716253,9.07158776,3210.5,3210.4,0.002]
[1763374716561,5.95680814,3210.5,3210.4,0.002]
[1763374716921,5.47570814,3210.5,3210.4,0.002]
[1763374718325,5.47541418,3210.5,3210.4,0.002]
[1763374719021,0.29188283,3210.5,3210.4,0.9346]
[1763374719765,0.74928283,3210.5,3210.4,0.002]
[1763374719925,0.74928283,3210.5,3210.4,0.4799]
[1763374719926,0.29188283,3210.5,3210.4,0.4799]
[1763374720360,0.96443977,3210.5,3210.4,0.4799]
[1763374720738,0.96443977,3210.5,3210.4,0.9346]
[1763374721352,1.58881756,3210.5,3210.4,0.4799]
[1763374722466,1.58881756,3210.5,3210.4,0.9346]
[1763374723033,1.58881756,3210.5,3210.4,0.4799]
[1763374723459,1.58801756,3210.5,3210.4,0.4799]
[1763374724476,1.58801756,3210.5,3210.4,0.9346]
[1763374724635,1.58801756,3210.5,3210.4,0.4799]
[1763374724831,1.36914377,3210.5,3210.4,0.4799]
[1763374725161,1.36914377,3210.5,3210.4,0.9346]
[1763374725866,1.36914377,3210.5,3210.4,0.002]
[1763374726066,1.82654377,3210.5,3210.4,0.002]
[1763374727484,3.44118457,3210.5,3210.4,0.002]
[1763374727778,4.66819336,3210.5,3210.4,0.002]
[1763374728239,3.72989336,3210.5,3210.4,0.4799]
[1763374728965,4.18729336,3210.5,3210.4,0.002]
[1763374729314,4.66819336,3210.5,3210.4,0.002]
[1763374730073,3.72989336,3210.5,3210.4,0.4799]
[1763374730378,4.21299336,3210.5,3210.4,0.002]
[1763374731072,3.72989336,3210.5,3210.4,0.002]
[1763374731549,4.18299336,3210.5,3210.4,0.002]
[1763374731889,4.65979336,3210.5,3210.4,0.002]
[1763374732652,4.18299336,3210.5,3210.4,0.002]
[1763374733588,4.65979336,3210.5,3210.4,0.002]
[1763374734166,5.50027496,3210.5,3210.4,0.002]
[1763374734383,5.02347496,3210.5,3210.4,0.002]
[1763374734681,5.50027496,3210.5,3210.4,0.002]
[1763374735102,8.61505458,3210.5,3210.4,0.002]
[1763374735258,4.65979336,3210.5,3210.4,0.002]
[1763374735459,7.77457298,3210.5,3210.4,0.002]
[1763374735871,4.65979336,3210.5,3210.4,0.002]
[1763374736169,7.77457298,3210.5,3210.4,0.002]
[1763374737796,7.77562436,3210.5,3210.4,0.002]
[1763374738396,4.66084474,3210.5,3210.4,0.002]
[1763374739603,7.77562436,3210.5,3210.1,0.007]
[1763374739923,5.73043816,3210.2,3210.1,0.007]
[1763374740130,6.69512931,3210.2,3210.1,0.007]
[1763374740643,6.24202931,3210.2,3210.1,0.4724]
[1763374742729,2.50393595,3210.2,3210.1,0.5839]
[1763374742894,3.83408122,3210.2,3210.1,1.0599]
[1763374745207,2.99285795,3210.2,3210.1,0.5839]
[1763374745409,2.99285795,3210.2,3210.1,0.4724]
[1763374746417,2.99205795,3210.2,3210.1,0.4724]
[1763374749138,2.99205795,3210.2,3210.1,0.007]
[1763374749300,3.44515795,3210.2,3210.1,0.007]
[1763374749504,3.92195795,3210.2,3210.1,0.007]
[1763374749710,4.28638122,3210.2,3210.1,0.007]
[1763374749908,3.92195795,3210.2,3210.1,0.007]
[1763374750212,1.5392448,3210.1,3210.0,0.002]
[1763374750392,0.405504,3209.8,3209.7,0.002]
[1763374750592,4.6368584,3209.8,3209.7,0.002]
[1763374750819,5.1133584,3209.8,3209.7,0.002]
[1763374751235,3.42953595,3209.8,3209.7,0.002]
[1763374751528,4.33461113,3209.8,3209.7,0.002]
[1763374752329,7.91768485,3209.8,3209.7,0.002]
[1763374752849,8.40690692,3209.8,3209.7,0.002]
[1763374753215,9.03834853,3209.8,3209.7,0.002]
[1763374754752,12.15380743,3209.8,3208.8,0.476]
[1763374755049,4.59269736,3209.5,3208.8,0.476]
[1763374755251,5.55738851,3209.5,3208.8,0.476]
[1763374755449,6.03388851,3209.5,3208.8,0.476]
[1763374755754,7.16762931,3209.5,3208.8,0.476]
[1763374757251,10.28337942,3209.5,3208.8,0.476]
[1763374757419,11.86821209,3209.5,3208.7,0.1957]
[1763374757754,11.86821209,3209.5,3208.1,0.005]
[1763374757755,1.5392448,3209.4,3208.3,0.4645]
[1763374757952,6.57766275,3209.2,3208.1,0.005]
[1763374758163,6.70282931,3209.2,3208.1,0.005]
[1763374758451,8.05925375,3209.2,3208.3,0.4645]
[1763374758620,8.05925375,3209.2,3208.1,0.005]
[1763374758820,8.05925375,3209.2,3208.5,0.4645]
[1763374759154,8.05925375,3209.2,3208.1,0.005]
[1763374759155,11.17529513,3209.2,3208.1,0.005]
[1763374759353,11.17529513,3209.2,3208.3,0.4645]
[1763374759569,12.08328568,3209.2,3208.1,0.005]
[1763374759768,12.08328568,3209.2,3208.2,0.4645]
[1763374760174,12.08328568,3209.2,3208.1,0.005]
[1763374760377,12.08328568,3209.2,3208.3,0.4645]
[1763374760576,12.08328568,3209.2,3208.2,0.4645]
[1763374762575,1.5392448,3209.1,3208.2,0.4645]
[1763374762877,1.5392448,3208.2,3208.1,0.005]
[1763374763478,1.5392448,3208.2,3208.1,0.9737]
[1763374763963,1.5392448,3208.4,3208.1,0.9737]
[1763374764168,1.5392448,3208.4,3208.2,0.4742]
[1763374764384,1.5392448,3208.4,3208.3,0.4945]
[1763374764570,1.83020384,3208.4,3208.3,0.4945]
[1763374764770,1.1337408,3208.9,3208.3,0.9687]
[1763374764944,0.29098657,3208.8,3208.4,0.4742]
[1763374765482,0.69649057,3208.8,3208.7,0.4945]
[1763374765976,0.69649057,3208.8,3208.7,0.9687]
[1763374766682,1.1857678,3208.8,3208.7,0.9687]
[1763374767004,1.1857678,3208.8,3208.7,0.4945]
[1763374767005,1.791528,3208.8,3208.7,0.4945]
[1763374767186,1.30225077,3208.8,3208.7,0.4945]
[1763374767345,1.30225077,3208.8,3208.7,0.9687]
[1763374768454,0.69649057,3208.8,3208.7,0.4945]
[1763374768668,0.69649057,3208.8,3208.7,0.9687]
[1763374769179,0.405504,3208.8,3208.7,0.9687]
[1763374769347,0.404704,3208.8,3208.7,0.9687]
[1763374770478,0.48925523,3209.0,3208.7,0.9687]
[1763374770683,0.001,3209.2,3208.9,0.4945]
[1763374770889,0.001,3209.2,3209.1,0.6783]
[1763374771362,0.406504,3209.2,3209.1,1.1525]
[1763374771575,0.69766535,3209.2,3209.1,1.1525]
[1763374771774,5.56949951,3209.2,3209.1,0.6783]
[1763374771986,5.56949951,3209.2,3209.1,0.4945]
[1763374771987,6.12644946,3209.2,3209.1,0.4945]
[1763374772777,6.12883554,3209.2,3209.1,0.4945]
[1763374774189,0.405504,3209.0,3208.5,0.4742]
[1763374774390,0.405504,3209.0,3208.9,0.4945]
[1763374774758,0.69683077,3209.0,3208.9,0.4945]
[1763374775392,0.87123337,3209.0,3208.9,0.4945]
[1763374775562,4.61171281,3209.0,3208.9,0.4945]
[1763374776193,5.74545361,3209.0,3208.9,0.4945]
[1763374776489,6.41713178,3209.0,3208.9,0.4945]
[1763374779593,6.41713178,3209.0,3208.9,0.9687]
[1763374780185,6.41713178,3209.0,3208.9,0.4945]
[1763374781402,2.67665234,3209.0,3208.9,0.4945]
[1763374781609,6.41713178,3209.0,3208.9,0.4945]
[1763374782213,6.24272918,3209.0,3208.9,0.4945]
[1763374782810,6.24272918,3209.0,3208.9,0.9687]
[1763374784981,6.24372918,3209.0,3208.9,0.9687]
[1763374787818,6.24372918,3209.0,3208.9,0.4945]
[1763374788325,1.5392448,3208.9,3208.8,0.002]
[1763374788539,3.12662266,3208.9,3208.8,0.002]
[1763374788716,3.12662266,3208.9,3208.8,0.4965]
[1763374790498,3.55142266,3208.9,3208.8,0.002]
[1763374791107,4.04882266,3208.9,3208.8,0.002]
[1763374792199,3.74352266,3208.9,3208.8,0.002]
[1763374792437,4.20092266,3208.9,3208.8,0.002]
[1763374793732,7.31725535,3208.9,3208.8,0.002]
[1763374793938,0.405504,3208.8,3208.4,0.002]
[1763374794135,7.93266288,3208.5,3208.4,0.002]
[1763374794340,8.89566782,3208.5,3208.4,0.002]
[1763374794532,10.02940862,3208.5,3208.4,0.002]
[1763374796701,6.28892918,3208.5,3208.4,0.002]
[1763374797062,10.02940862,3208.5,3208.4,0.002]
[1763374797242,11.67442123,3208.5,3208.4,0.002]
[1763374798508,12.13262123,3208.5,3208.4,0.002]
[1763374798841,7.93394179,3208.5,3208.4,0.002]
[1763374799643,7.88774179,3208.5,3208.4,0.4584]
[1763374799808,6.24358156,3208.5,3208.4,0.4584]
[1763374800412,6.24358156,3208.5,3208.4,0.002]
[1763374800635,6.70128156,3208.5,3208.4,0.002]
[1763374801160,6.24358156,3208.5,3208.4,0.4584]
[1763374801825,7.15948156,3208.5,3208.4,0.002]
[1763374802022,14.91321253,3208.5,3208.4,0.002]
[1763374802323,16.23272812,3208.5,3208.4,0.002]
[1763374802560,15.39071253,3208.5,3208.4,0.002]
[1763374802856,15.39071253,3208.5,3208.0,0.002]
[1763374802857,0.0136,3208.2,3208.0,0.002]
[1763374803163,3.52271098,3208.0,3207.7,0.002]
[1763374803348,12.03181628,3207.9,3207.7,0.002]
[1763374803547,12.49001628,3207.9,3207.7,0.002]
[1763374804247,13.32994208,3207.9,3207.7,0.002]
[1763374804472,5.6383832,3207.9,3207.7,0.002]
[1763374804753,9.83706264,3207.9,3207.7,0.002]
[1763374804955,9.96207768,3207.9,3207.7,0.002]
[1763374805269,1.875,3207.4,3206.2,0.001]
[1763374805439,0.405504,3206.4,3206.2,0.001]
[1763374805640,1.9969448,3206.2,3205.1,0.1888]
[1763374805967,1.5392448,3205.6,3205.1,0.005]
[1763374806167,1.5392448,3205.6,3204.4,0.1872]
[1763374806168,1.5392448,3205.1,3204.4,0.1872]
[1763374806340,5.27972424,3204.5,3204.0,0.1872]
[1763374806541,3.74047944,3204.2,3204.0,0.1872]
[1763374806861,3.74047944,3204.2,3204.1,0.4775]
[1763374806862,4.87422024,3204.2,3204.1,0.4775]
[1763374807077,4.87422024,3204.2,3204.1,0.9339]
[1763374808241,1.1337408,3204.2,3204.1,0.9339]
[1763374810205,1.5392448,3204.2,3204.1,0.4614]
[1763374811402,1.5392448,3204.2,3204.1,0.9339]
[1763374812550,1.5392448,3204.2,3204.1,0.4614]
[1763374812965,1.5392448,3204.2,3204.1,0.9339]
[1763374813174,2.0006448,3204.2,3204.1,0.9339]
[1763374813804,1.5951408,3204.2,3204.1,0.9339]
[1763374814119,1.1337408,3204.2,3204.1,0.9339]
[1763374815273,0.9339,3204.5,3204.1,0.9339]
[1763374815472,0.48907308,3205.1,3205.0,0.4564]
[1763374816012,1.36707708,3205.1,3205.0,0.4564]
[1763374816311,1.36707708,3205.1,3205.0,0.9289]
[1763374816675,0.96157308,3205.1,3205.0,0.9289]
[1763374816880,1.38458591,3206.2,3205.0,0.9289]
[1763374816881,1.1337408,3205.8,3205.0,0.9289]
[1763374817204,0.98169815,3205.7,3205.3,0.4564]
[1763374817408,4.55102645,3205.5,3204.9,0.1872]
[1763374817709,0.405504,3205.3,3204.9,0.1872]
[1763374818080,0.856104,3205.3,3204.7,0.4986]
[1763374818507,1.5392448,3205.0,3204.6,0.1966]
[1763374819305,2.69193193,3205.0,3204.6,0.1966]
[1763374819498,2.69193193,3205.0,3204.6,0.6952]
[1763374819680,2.0378448,3205.0,3204.9,0.482]
[1763374819877,0.405504,3205.0,3204.9,0.482]
[1763374820076,0.405504,3205.0,3204.9,0.9806]
[1763374820290,0.405504,3205.1,3204.9,0.9806]
[1763374820489,0.405504,3205.1,3204.9,0.4986]
[1763374820806,0.56455629,3205.1,3205.0,0.482]
[1763374821011,0.56455629,3205.1,3204.6,0.6952]
[1763374821217,0.56455629,3205.1,3204.7,0.4986]
[1763374821381,0.56455629,3205.1,3205.0,0.482]
[1763374822510,0.56455629,3205.1,3205.0,0.955]
[1763374824720,0.405504,3205.2,3205.0,0.955]
[1763374825028,0.405504,3205.2,3205.1,0.473]
[1763374825236,0.405504,3205.2,3205.1,1.1546]
[1763374826414,0.405504,3205.2,3205.1,0.4846]
[1763374826612,0.405504,3205.2,3205.1,0.5786]
[1763374826927,0.8385378,3205.8,3205.1,0.5786]
[1763374826928,10.89102645,3206.0,3205.1,1.0516]
[1763374827153,0.5786,3205.6,3205.1,0.567]
[1763374827297,0.405504,3205.8,3205.2,0.473]
[1763374827496,1.9722786,3206.3,3205.8,0.4846]
[1763374827497,0.567,3206.0,3205.8,0.4846]
[1763374827920,0.405504,3205.9,3205.8,0.473]
[1763374828114,0.567,3206.0,3205.9,0.4846]
[1763374828419,1.26210097,3206.0,3205.9,0.4846]
[1763374828621,0.405504,3205.9,3205.1,0.567]
[1763374828820,1.7418448,3205.9,3205.1,0.567]
[1763374829025,0.28966218,3205.8,3205.1,0.567]
[1763374829332,0.405504,3205.6,3205.1,0.567]
[1763374829636,0.405504,3205.7,3205.5,0.4846]
[1763374829825,0.405504,3205.7,3205.6,0.4846]
[1763374830011,0.69550386,3205.7,3205.6,0.4846]
[1763374831057,1.38462938,3205.7,3205.1,0.094]
[1763374831243,0.28999986,3205.6,3205.1,0.567]
[1763374831439,0.28999986,3205.6,3205.5,0.4846]
[1763374831953,0.28999986,3205.6,3205.5,0.9576]
[1763374832317,1.36462794,3205.6,3205.5,0.9576]
[1763374834360,1.36462794,3205.6,3205.5,0.75429179]
[1763374834969,0.95912394,3205.6,3205.5,0.75429179]
[1763374836059,0.28999986,3205.6,3205.5,0.75429179]
[1763374838809,0.28919986,3205.6,3205.5,0.75429179]
[1763374839665,0.28919986,3205.6,3205.5,0.75529179]
[1763374839902,0.29119986,3205.6,3205.5,0.75529179]
[1763374842401,0.002,3205.6,3205.5,0.75529179]
[1763374843781,0.002,3205.6,3205.5,0.28229179]
[1763374845004,0.002,3205.6,3205.5,0.75529179]
[1763374845866,0.002,3205.6,3205.5,0.28229179]
[1763374846271,0.002,3205.6,3205.5,0.75529179]
[1763374847204,0.002,3205.6,3205.5,0.28229179]
[1763374847703,0.002,3205.6,3205.5,0.75529179]
[1763374848469,0.002,3205.6,3205.5,0.28229179]
[1763374849275,0.002,3205.6,3205.5,0.75529179]
[1763374850882,0.29403673,3205.6,3205.5,0.75529179]
[1763374851283,0.002,3205.6,3205.5,0.75529179]
[1763374855095,0.002,3205.6,3205.5,0.28229179]
[1763374855487,0.002,3205.6,3205.5,0.74999179]
[1763374856417,0.29469405,3205.6,3205.5,0.74999179]
[1763374857188,0.002,3205.6,3205.5,0.74999179]
[1763374857419,0.29472461,3205.6,3205.5,0.74999179]
[1763374858334,0.002,3205.6,3205.5,0.74999179]
[1763374859575,0.002,3205.6,3205.5,0.28229179]
[1763374859734,0.29475809,3205.6,3205.5,0.28229179]
[1763374860730,0.29475809,3205.6,3205.5,0.74999179]
[1763374860929,0.002,3205.6,3205.5,0.28229179]
[1763374861738,0.0012,3205.6,3205.5,0.28229179]
[1763374862172,0.0012,3205.6,3205.5,0.74999179]
[1763374863139,0.0012,3205.6,3205.5,0.28229179]
[1763374863335,0.29409892,3205.6,3205.5,0.28229179]
[1763374866477,0.29420827,3205.6,3205.5,0.28229179]
[1763374867499,0.75540827,3205.6,3205.5,0.001]
[1763374867658,1.22970827,3205.6,3205.5,0.001]
[1763374867983,1.42018996,3205.6,3205.5,0.001]
[1763374870721,5.84340542,3205.6,3205.5,0.001]
[1763374871270,6.24890942,3205.6,3205.5,0.001]
[1763374871712,2.02642036,3205.6,3205.5,0.001]
[1763374871878,2.50072036,3205.6,3205.5,0.001]
[1763374872867,7.38265022,3205.6,3205.5,0.001]
[1763374875671,8.22118802,3205.6,3205.5,0.001]
[1763374876386,7.38265022,3205.6,3205.5,0.001]
[1763374877308,7.87243948,3205.6,3205.5,0.001]
[1763374877496,7.38265022,3205.6,3205.5,0.001]